[Event "Late-Titled-Tuesday-Blitz-March-05-2024"]
[Site "Chess.com"]
[Date "2024.03.05"]
[Round "8"]
[White "kids2010"]
[Black "Hamisandwich"]
[Result "1-0"]
[WhiteElo "2808"]
[BlackElo "2664"]
[TimeControl "180+1"]
[EndTime "15:25:40 PST"]
[Termination "kids2010 won on time"]

1. e4 {[%clk 0:03:00.7]} 1... e5 {[%clk 0:02:50.9]} 2. Nf3 {[%clk 0:02:58.9]}
2... Nc6 {[%clk 0:02:51.1]} 3. Bc4 {[%clk 0:02:57.9]} 3... Nf6 {[%clk 0:02:46]}
4. d3 {[%clk 0:02:57.4]} 4... Bc5 {[%clk 0:02:44.9]} 5. O-O {[%clk 0:02:57.2]}
5... d6 {[%clk 0:02:41.5]} 6. c3 {[%clk 0:02:56.6]} 6... a6 {[%clk 0:02:39]} 7.
a4 {[%clk 0:02:55.9]} 7... Ba7 {[%clk 0:02:34.3]} 8. Re1 {[%clk 0:02:53.6]} 8...
h6 {[%clk 0:02:31.3]} 9. b4 {[%clk 0:02:52.5]} 9... O-O {[%clk 0:02:29.3]} 10.
h3 {[%clk 0:02:47.8]} 10... Ne7 {[%clk 0:02:27.1]} 11. Nbd2 {[%clk 0:02:43.2]}
11... Ng6 {[%clk 0:02:25.6]} 12. Nf1 {[%clk 0:02:42.4]} 12... d5 {[%clk
0:02:08.1]} 13. exd5 {[%clk 0:02:39.1]} 13... Nxd5 {[%clk 0:02:09]} 14. Qb3
{[%clk 0:02:23.2]} 14... Ndf4 {[%clk 0:02:00.1]} 15. Bxf4 {[%clk 0:02:14.2]}
15... exf4 {[%clk 0:01:55.4]} 16. d4 {[%clk 0:02:13.4]} 16... c6 {[%clk
0:01:47.1]} 17. N1d2 {[%clk 0:02:01.1]} 17... Bb8 {[%clk 0:01:38.7]} 18. Bd3
{[%clk 0:01:59.8]} 18... Nh4 {[%clk 0:01:32.4]} 19. a5 {[%clk 0:01:52.6]} 19...
Qf6 {[%clk 0:01:16]} 20. Re2 {[%clk 0:01:36.5]} 20... Be6 {[%clk 0:01:11.7]} 21.
Qc2 {[%clk 0:01:25.7]} 21... Bc7 {[%clk 0:01:11.8]} 22. Rae1 {[%clk 0:01:25]}
22... Rad8 {[%clk 0:01:00.1]} 23. Rxe6 {[%clk 0:01:20]} 23... Nxf3+ {[%clk
0:00:58.3]} 24. Nxf3 {[%clk 0:01:20.9]} 24... fxe6 {[%clk 0:00:57.2]} 25. Bc4
{[%clk 0:01:17.1]} 25... Rd5 {[%clk 0:00:51.7]} 26. Qe4 {[%clk 0:01:10.8]} 26...
Kh8 {[%clk 0:00:48.3]} 27. Bxd5 {[%clk 0:01:08.8]} 27... exd5 {[%clk 0:00:48.1]}
28. Qe7 {[%clk 0:01:07.8]} 28... Qf7 {[%clk 0:00:45.2]} 29. Qxf7 {[%clk
0:00:51.8]} 29... Rxf7 {[%clk 0:00:46.1]} 30. Re8+ {[%clk 0:00:52]} 30... Kh7
{[%clk 0:00:46]} 31. Nd2 {[%clk 0:00:50.2]} 31... Bd6 {[%clk 0:00:37.7]} 32. Nb3
{[%clk 0:00:48.3]} 32... g5 {[%clk 0:00:21.6]} 33. Re6 {[%clk 0:00:39.7]} 33...
Bf8 {[%clk 0:00:20.6]} 34. Kf1 {[%clk 0:00:37.6]} 34... Kg7 {[%clk 0:00:20.9]}
35. Ke2 {[%clk 0:00:29.2]} 35... Re7 {[%clk 0:00:21.2]} 36. Nc5 {[%clk 0:00:28]}
36... Rf7 {[%clk 0:00:15.5]} 37. Kf3 {[%clk 0:00:18.8]} 37... Bxc5 {[%clk
0:00:15.1]} 38. bxc5 {[%clk 0:00:19.7]} 38... Rf6 {[%clk 0:00:15.2]} 39. Re7+
{[%clk 0:00:18.5]} 39... Rf7 {[%clk 0:00:15.8]} 40. Re8 {[%clk 0:00:19.2]} 40...
Kg6 {[%clk 0:00:15.1]} 41. h4 {[%clk 0:00:17]} 41... Kh5 {[%clk 0:00:09.8]} 42.
hxg5 {[%clk 0:00:16.2]} 42... hxg5 {[%clk 0:00:10.7]} 43. Rh8+ {[%clk
0:00:16.2]} 43... Kg6 {[%clk 0:00:10.5]} 44. Kg4 {[%clk 0:00:16.3]} 44... Rg7
{[%clk 0:00:08.5]} 45. Re8 {[%clk 0:00:13.4]} 45... Kf6 {[%clk 0:00:08.2]} 46.
Re5 {[%clk 0:00:13.7]} 1-0

[Event "Late-Titled-Tuesday-Blitz-March-05-2024"]
[Site "Chess.com"]
[Date "2024.03.05"]
[Round "8"]
[White "Abduzhaparov"]
[Black "jinbojinbo"]
[Result "0-1"]
[WhiteElo "2454"]
[BlackElo "2642"]
[TimeControl "180+1"]
[EndTime "15:25:42 PST"]
[Termination "jinbojinbo won by resignation"]

1. Nf3 {[%clk 0:02:54.8]} 1... Nf6 {[%clk 0:02:59.4]} 2. c4 {[%clk 0:02:55.7]}
2... g6 {[%clk 0:02:58.6]} 3. Nc3 {[%clk 0:02:55.8]} 3... Bg7 {[%clk 0:02:59.5]}
4. e4 {[%clk 0:02:56.4]} 4... d6 {[%clk 0:03:00.3]} 5. d4 {[%clk 0:02:57.3]}
5... O-O {[%clk 0:03:00.7]} 6. Be3 {[%clk 0:02:58.2]} 6... e5 {[%clk 0:02:57.4]}
7. dxe5 {[%clk 0:02:59.1]} 7... dxe5 {[%clk 0:02:57.1]} 8. Qxd8 {[%clk 0:03:00]}
8... Rxd8 {[%clk 0:02:57.7]} 9. Nd5 {[%clk 0:03:00.9]} 9... Na6 {[%clk
0:02:44.5]} 10. O-O-O {[%clk 0:03:00.2]} 10... Bg4 {[%clk 0:02:26.1]} 11. h3
{[%clk 0:02:59.4]} 11... Bxf3 {[%clk 0:02:25.9]} 12. gxf3 {[%clk 0:03:00.3]}
12... c6 {[%clk 0:02:22.9]} 13. Nxf6+ {[%clk 0:02:57.3]} 13... Bxf6 {[%clk
0:02:23.8]} 14. c5 {[%clk 0:02:55]} 14... Nc7 {[%clk 0:02:18.2]} 15. Bc4 {[%clk
0:02:48.9]} 15... Be7 {[%clk 0:02:05.2]} 16. h4 {[%clk 0:02:41]} 16... h5 {[%clk
0:02:04.7]} 17. Rdg1 {[%clk 0:02:35.9]} 17... Kf8 {[%clk 0:02:02.4]} 18. f4
{[%clk 0:02:30.5]} 18... exf4 {[%clk 0:01:57.1]} 19. Bxf4 {[%clk 0:02:31.4]}
19... Ne8 {[%clk 0:01:41.6]} 20. Bh6+ {[%clk 0:02:26.2]} 20... Ng7 {[%clk
0:01:39.8]} 21. Be3 {[%clk 0:02:08.9]} 21... Bf6 {[%clk 0:01:39.8]} 22. Rd1
{[%clk 0:01:59.5]} 22... Rxd1+ {[%clk 0:01:32.9]} 23. Rxd1 {[%clk 0:02:00.4]}
23... Ke8 {[%clk 0:01:32.2]} 24. Bg5 {[%clk 0:01:45.1]} 24... Bxg5+ {[%clk
0:01:32.3]} 25. hxg5 {[%clk 0:01:46]} 25... Ke7 {[%clk 0:01:32.5]} 26. Rd6
{[%clk 0:01:38.2]} 26... Rh8 {[%clk 0:01:22.3]} 27. Rf6 {[%clk 0:01:36.5]} 27...
Ne6 {[%clk 0:00:56.7]} 28. Bxe6 {[%clk 0:01:27.9]} 28... fxe6 {[%clk 0:00:57.6]}
29. Rf3 {[%clk 0:01:25.8]} 29... Rf8 {[%clk 0:00:54.8]} 30. Rb3 {[%clk
0:00:53.4]} 30... b5 {[%clk 0:00:36.7]} 31. cxb6 {[%clk 0:00:51.9]} 31... axb6
{[%clk 0:00:37.5]} 32. Rxb6 {[%clk 0:00:51.1]} 32... Rxf2 {[%clk 0:00:37.7]} 33.
Rxc6 {[%clk 0:00:50.6]} 33... Rg2 {[%clk 0:00:30.3]} 34. Rc5 {[%clk 0:00:29.9]}
34... Kd6 {[%clk 0:00:29.7]} 35. Rb5 {[%clk 0:00:22.4]} 35... h4 {[%clk
0:00:29.5]} 36. Rb3 {[%clk 0:00:15.1]} 36... Rg3 {[%clk 0:00:29.4]} 37. Rb8
{[%clk 0:00:13.7]} 37... Rxg5 {[%clk 0:00:29.2]} 38. Rh8 {[%clk 0:00:13.5]}
38... Rh5 {[%clk 0:00:29.3]} 39. Rf8 {[%clk 0:00:13.1]} 39... h3 {[%clk
0:00:28.4]} 40. Rf1 {[%clk 0:00:13.7]} 40... h2 {[%clk 0:00:25.2]} 41. Rh1
{[%clk 0:00:13.7]} 41... Ke5 {[%clk 0:00:24.1]} 42. Kd2 {[%clk 0:00:13.4]} 42...
Kf4 {[%clk 0:00:24.4]} 43. Ke2 {[%clk 0:00:12.6]} 43... Kg3 {[%clk 0:00:24.8]}
44. Kf1 {[%clk 0:00:03.4]} 44... Rc5 {[%clk 0:00:23.7]} 45. Ke2 {[%clk
0:00:03.3]} 45... Kg2 {[%clk 0:00:23.2]} 46. Rxh2+ {[%clk 0:00:03.4]} 46... Kxh2
{[%clk 0:00:24.1]} 47. Kd3 {[%clk 0:00:03.8]} 47... g5 {[%clk 0:00:23.9]} 48. b4
{[%clk 0:00:03.9]} 48... Rc8 {[%clk 0:00:23.9]} 49. a4 {[%clk 0:00:03.5]} 49...
g4 {[%clk 0:00:22.4]} 0-1

[Event "Late-Titled-Tuesday-Blitz-March-05-2024"]
[Site "Chess.com"]
[Date "2024.03.05"]
[Round "8"]
[White "Rud_2008"]
[Black "kleinebeer98"]
[Result "0-1"]
[WhiteElo "2772"]
[BlackElo "2898"]
[TimeControl "180+1"]
[EndTime "15:25:46 PST"]
[Termination "kleinebeer98 won by resignation"]

1. e4 {[%clk 0:03:00.9]} 1... e5 {[%clk 0:02:59.3]} 2. Nf3 {[%clk 0:03:00]} 2...
Nc6 {[%clk 0:03:00]} 3. Nc3 {[%clk 0:02:59.5]} 3... Nf6 {[%clk 0:03:00]} 4. d4
{[%clk 0:02:59.9]} 4... exd4 {[%clk 0:03:00.6]} 5. Nxd4 {[%clk 0:03:00.3]} 5...
Nxe4 {[%clk 0:03:01.5]} 6. Nxe4 {[%clk 0:03:00]} 6... Qe7 {[%clk 0:03:02]} 7.
Bd3 {[%clk 0:03:00.7]} 7... Nxd4 {[%clk 0:03:02]} 8. O-O {[%clk 0:03:01.4]} 8...
Ne6 {[%clk 0:03:00.5]} 9. Re1 {[%clk 0:03:01.1]} 9... d5 {[%clk 0:02:59.9]} 10.
Ng3 {[%clk 0:03:01.3]} 10... g6 {[%clk 0:02:59]} 11. Qf3 {[%clk 0:02:49.9]}
11... Bg7 {[%clk 0:02:50]} 12. Qxd5 {[%clk 0:02:46]} 12... O-O {[%clk
0:02:50.6]} 13. c3 {[%clk 0:02:37.9]} 13... Rd8 {[%clk 0:02:48.1]} 14. Qf3
{[%clk 0:02:37.2]} 14... a5 {[%clk 0:02:45]} 15. Bd2 {[%clk 0:02:23.7]} 15... a4
{[%clk 0:02:40.6]} 16. Rad1 {[%clk 0:01:51.9]} 16... a3 {[%clk 0:02:40.6]} 17.
b3 {[%clk 0:01:52.5]} 17... c6 {[%clk 0:02:32.6]} 18. Ne4 {[%clk 0:01:49.1]}
18... Bd7 {[%clk 0:02:26]} 19. Bc1 {[%clk 0:01:38.1]} 19... Ra5 {[%clk
0:02:17.5]} 20. Bc2 {[%clk 0:01:33.9]} 20... Rf5 {[%clk 0:02:16.1]} 21. Qg3
{[%clk 0:01:17]} 21... Be5 {[%clk 0:02:14.6]} 22. Qg4 {[%clk 0:01:13.5]} 22...
Rh5 {[%clk 0:02:06.6]} 23. h3 {[%clk 0:01:08.9]} 23... f5 {[%clk 0:01:46.7]} 24.
Qe2 {[%clk 0:00:44.5]} 24... fxe4 {[%clk 0:01:46.7]} 25. Qxe4 {[%clk 0:00:45.4]}
25... Ng5 {[%clk 0:01:05.2]} 26. Qc4+ {[%clk 0:00:38.6]} 26... Be6 {[%clk
0:00:52.6]} 27. Rxd8+ {[%clk 0:00:35.3]} 27... Qxd8 {[%clk 0:00:51.2]} 28. Bxg5
{[%clk 0:00:36]} 28... Bxc4 {[%clk 0:00:22.3]} 29. Bxd8 {[%clk 0:00:35.4]} 29...
Bf7 {[%clk 0:00:20.8]} 30. g4 {[%clk 0:00:33.6]} 30... Bxc3 {[%clk 0:00:20.3]}
31. Re3 {[%clk 0:00:27.9]} 31... Rd5 {[%clk 0:00:20.7]} 32. Be7 {[%clk
0:00:17.2]} 32... Bb2 {[%clk 0:00:18.7]} 33. b4 {[%clk 0:00:13.1]} 33... Rd2
{[%clk 0:00:17.3]} 34. Bb3 {[%clk 0:00:10.5]} 34... Bd4 {[%clk 0:00:16.4]} 35.
Rf3 {[%clk 0:00:04.3]} 35... Bxb3 {[%clk 0:00:15.2]} 36. Rxb3 {[%clk 0:00:04.4]}
36... Rxa2 {[%clk 0:00:15.9]} 37. Rd3 {[%clk 0:00:02.9]} 37... Bxf2+ {[%clk
0:00:10]} 38. Kf1 {[%clk 0:00:02.8]} 38... b6 {[%clk 0:00:06.4]} 39. Bg5 {[%clk
0:00:02.9]} 39... c5 {[%clk 0:00:06.3]} 40. Bh6 {[%clk 0:00:03]} 40... Bd4
{[%clk 0:00:05.8]} 41. bxc5 {[%clk 0:00:02.4]} 41... bxc5 {[%clk 0:00:05.9]} 42.
Rb3 {[%clk 0:00:02.1]} 42... Kf7 {[%clk 0:00:04.6]} 43. Rb7+ {[%clk 0:00:02.3]}
43... Ke6 {[%clk 0:00:05.2]} 44. Rxh7 {[%clk 0:00:02.2]} 44... Rh2 {[%clk
0:00:04.8]} 45. Ra7 {[%clk 0:00:01.4]} 45... a2 {[%clk 0:00:05.3]} 46. Ra6+
{[%clk 0:00:02.3]} 46... Kd5 {[%clk 0:00:05.6]} 0-1

[Event "Late-Titled-Tuesday-Blitz-March-05-2024"]
[Site "Chess.com"]
[Date "2024.03.05"]
[Round "8"]
[White "GoltsevDmitry2000"]
[Black "TokChess"]
[Result "1-0"]
[WhiteElo "2698"]
[BlackElo "2538"]
[TimeControl "180+1"]
[EndTime "15:25:47 PST"]
[Termination "GoltsevDmitry2000 won by resignation"]

1. e4 {[%clk 0:02:56.5]} 1... c5 {[%clk 0:02:51.5]} 2. Nf3 {[%clk 0:02:56.1]}
2... e6 {[%clk 0:02:50.9]} 3. b3 {[%clk 0:02:55.9]} 3... Nc6 {[%clk 0:02:50.2]}
4. Bb2 {[%clk 0:02:56.2]} 4... Nf6 {[%clk 0:02:50]} 5. e5 {[%clk 0:02:55.8]}
5... Nd5 {[%clk 0:02:50.3]} 6. c4 {[%clk 0:02:55.5]} 6... Nc7 {[%clk 0:02:49.9]}
7. Nc3 {[%clk 0:02:56.1]} 7... Be7 {[%clk 0:02:47.8]} 8. Ne4 {[%clk 0:02:56]}
8... b6 {[%clk 0:02:44.8]} 9. h4 {[%clk 0:02:54.6]} 9... Na6 {[%clk 0:02:10.9]}
10. Bd3 {[%clk 0:02:35.9]} 10... Bb7 {[%clk 0:02:06.9]} 11. Nfg5 {[%clk
0:02:29.1]} 11... Qc7 {[%clk 0:01:55.5]} 12. Qh5 {[%clk 0:01:51.8]} 12... g6
{[%clk 0:01:44.8]} 13. Qf3 {[%clk 0:01:34.1]} 13... Nxe5 {[%clk 0:01:08.3]} 14.
Bxe5 {[%clk 0:01:33.7]} 14... Qxe5 {[%clk 0:01:09.2]} 15. Qxf7+ {[%clk
0:01:29.8]} 15... Kd8 {[%clk 0:01:09.3]} 16. O-O {[%clk 0:01:29.9]} 16... Bxg5
{[%clk 0:00:55.9]} 17. Nxg5 {[%clk 0:01:22.5]} 17... Re8 {[%clk 0:00:35.6]} 18.
Qxh7 {[%clk 0:00:53.8]} 18... Qd4 {[%clk 0:00:22.3]} 19. Bxg6 {[%clk 0:00:49.5]}
19... Re7 {[%clk 0:00:20.1]} 20. Qh5 {[%clk 0:00:17.7]} 20... Kc7 {[%clk
0:00:18.5]} 21. Nf7 {[%clk 0:00:12.9]} 21... Rg8 {[%clk 0:00:15.7]} 22. Rae1
{[%clk 0:00:12.1]} 22... Rxf7 {[%clk 0:00:14.2]} 23. Re3 {[%clk 0:00:07.1]}
23... Rfg7 {[%clk 0:00:13]} 24. Rg3 {[%clk 0:00:07.7]} 24... Qf6 {[%clk
0:00:11.9]} 25. Bc2 {[%clk 0:00:03.6]} 25... Nb4 {[%clk 0:00:11.9]} 26. Bb1
{[%clk 0:00:03.4]} 26... Nc6 {[%clk 0:00:08.3]} 27. Re1 {[%clk 0:00:02.4]} 27...
Nd4 {[%clk 0:00:08.3]} 28. Ree3 {[%clk 0:00:02.3]} 28... Rxg3 {[%clk 0:00:07.7]}
29. Rxg3 {[%clk 0:00:03]} 29... Rxg3 {[%clk 0:00:07.5]} 30. fxg3 {[%clk
0:00:03.9]} 30... Qg7 {[%clk 0:00:07.4]} 31. Bg6 {[%clk 0:00:03.7]} 31... Bc6
{[%clk 0:00:07.6]} 32. Qg5 {[%clk 0:00:04.2]} 32... Kb7 {[%clk 0:00:06.9]} 33.
h5 {[%clk 0:00:04.6]} 33... Nf5 {[%clk 0:00:06.4]} 34. g4 {[%clk 0:00:03.9]}
34... Nh6 {[%clk 0:00:06.9]} 35. Qf4 {[%clk 0:00:03.5]} 35... Qa1+ {[%clk
0:00:06.6]} 36. Kh2 {[%clk 0:00:03.3]} 36... Qg7 {[%clk 0:00:05.9]} 37. g5
{[%clk 0:00:03.5]} 37... Nf5 {[%clk 0:00:04.7]} 38. Bxf5 {[%clk 0:00:03.9]}
38... exf5 {[%clk 0:00:05.6]} 39. Qxf5 {[%clk 0:00:04.8]} 39... Qd4 {[%clk
0:00:05.4]} 40. h6 {[%clk 0:00:04.7]} 40... Qxd2 {[%clk 0:00:05.1]} 41. Qg4
{[%clk 0:00:03]} 41... Qd3 {[%clk 0:00:04.2]} 42. g6 {[%clk 0:00:03.5]} 42...
Be4 {[%clk 0:00:03.1]} 43. g7 {[%clk 0:00:03.1]} 43... Qd6+ {[%clk 0:00:02.7]}
44. Kg1 {[%clk 0:00:02.1]} 44... Qd1+ {[%clk 0:00:02.7]} 45. Qxd1 {[%clk
0:00:01.8]} 1-0

[Event "Late-Titled-Tuesday-Blitz-March-05-2024"]
[Site "Chess.com"]
[Date "2024.03.05"]
[Round "8"]
[White "howitzer14"]
[Black "ventdelest"]
[Result "1-0"]
[WhiteElo "2985"]
[BlackElo "2076"]
[TimeControl "180+1"]
[EndTime "15:25:52 PST"]
[Termination "howitzer14 won on time"]

1. d4 {[%clk 0:02:57.4]} 1... Nf6 {[%clk 0:02:58.4]} 2. c4 {[%clk 0:02:51.8]}
2... e6 {[%clk 0:02:57.7]} 3. Nc3 {[%clk 0:02:47.9]} 3... d5 {[%clk 0:02:57.1]}
4. cxd5 {[%clk 0:02:46.2]} 4... exd5 {[%clk 0:02:58]} 5. Bg5 {[%clk 0:02:45]}
5... Be7 {[%clk 0:02:57.8]} 6. e3 {[%clk 0:02:45.4]} 6... O-O {[%clk 0:02:57.5]}
7. Bd3 {[%clk 0:02:45.6]} 7... h6 {[%clk 0:02:55.5]} 8. Bf4 {[%clk 0:02:34.3]}
8... c6 {[%clk 0:02:55.1]} 9. h3 {[%clk 0:02:32.5]} 9... Nbd7 {[%clk 0:02:53.1]}
10. Nf3 {[%clk 0:02:31.2]} 10... Re8 {[%clk 0:02:47.4]} 11. Qc2 {[%clk
0:02:26.1]} 11... Nf8 {[%clk 0:02:46.2]} 12. O-O-O {[%clk 0:02:20.3]} 12... Qa5
{[%clk 0:02:42.8]} 13. Kb1 {[%clk 0:02:19]} 13... Ne6 {[%clk 0:02:40]} 14. Bh2
{[%clk 0:02:01.6]} 14... c5 {[%clk 0:02:34.9]} 15. dxc5 {[%clk 0:01:53.9]} 15...
Nxc5 {[%clk 0:02:28.6]} 16. Nd4 {[%clk 0:01:53.7]} 16... Nxd3 {[%clk 0:02:26]}
17. Qxd3 {[%clk 0:01:54.3]} 17... Bb4 {[%clk 0:02:07.2]} 18. Ncb5 {[%clk
0:01:30.7]} 18... Ne4 {[%clk 0:01:40]} 19. Qe2 {[%clk 0:01:07]} 19... Re7 {[%clk
0:01:11]} 20. f3 {[%clk 0:00:52.2]} 20... a6 {[%clk 0:01:05.7]} 21. Nc7 {[%clk
0:00:47.7]} 21... Nd6 {[%clk 0:00:20.3]} 22. Bxd6 {[%clk 0:00:41.7]} 22... Bxd6
{[%clk 0:00:17.3]} 23. Nxa8 {[%clk 0:00:41.6]} 23... Be6 {[%clk 0:00:07.7]} 24.
Rc1 {[%clk 0:00:25.7]} 24... Qd8 {[%clk 0:00:07.9]} 25. Rc3 {[%clk 0:00:24.8]}
25... Qxa8 {[%clk 0:00:07.6]} 26. Rhc1 {[%clk 0:00:25.4]} 26... Kh7 {[%clk
0:00:07.4]} 27. Qd3+ {[%clk 0:00:24.8]} 27... g6 {[%clk 0:00:07.6]} 28. Nxe6
{[%clk 0:00:25.2]} 28... Rxe6 {[%clk 0:00:07.2]} 29. Qxd5 {[%clk 0:00:21.7]}
29... Qa7 {[%clk 0:00:06.3]} 30. Qd4 {[%clk 0:00:15.6]} 30... Qxd4 {[%clk
0:00:06.4]} 31. exd4 {[%clk 0:00:16.5]} 31... Re2 {[%clk 0:00:06.3]} 32. R3c2
{[%clk 0:00:16.1]} 32... Re3 {[%clk 0:00:05.9]} 33. Rd1 {[%clk 0:00:16.7]} 33...
Kg7 {[%clk 0:00:05]} 34. a3 {[%clk 0:00:16.3]} 34... Kf6 {[%clk 0:00:05.2]} 35.
Rcd2 {[%clk 0:00:15.2]} 35... Ke6 {[%clk 0:00:05.3]} 36. d5+ {[%clk 0:00:13.7]}
36... Kd7 {[%clk 0:00:05]} 37. Kc2 {[%clk 0:00:14]} 37... f5 {[%clk 0:00:04.9]}
38. Rd3 {[%clk 0:00:13.8]} 38... Re2+ {[%clk 0:00:04.4]} 39. R1d2 {[%clk
0:00:13.6]} 39... Re7 {[%clk 0:00:05.3]} 40. Kd1 {[%clk 0:00:11.9]} 40... Bf4
{[%clk 0:00:05.4]} 41. Re2 {[%clk 0:00:12.5]} 41... Rf7 {[%clk 0:00:05.8]} 42.
Re6 {[%clk 0:00:12.2]} 42... Rg7 {[%clk 0:00:04.3]} 43. Rb3 {[%clk 0:00:10.9]}
43... b5 {[%clk 0:00:04]} 44. Rxa6 {[%clk 0:00:10.4]} 44... Re7 {[%clk
0:00:01.6]} 45. Rxb5 {[%clk 0:00:10.3]} 1-0

[Event "Late-Titled-Tuesday-Blitz-March-05-2024"]
[Site "Chess.com"]
[Date "2024.03.05"]
[Round "8"]
[White "Lukianoo"]
[Black "ukchessbomber"]
[Result "1-0"]
[WhiteElo "2874"]
[BlackElo "2661"]
[TimeControl "180+1"]
[EndTime "15:25:56 PST"]
[Termination "Lukianoo won on time"]

1. e4 {[%clk 0:03:00.9]} 1... b6 {[%clk 0:03:00.9]} 2. d4 {[%clk 0:02:59.5]}
2... Bb7 {[%clk 0:03:01.8]} 3. Nc3 {[%clk 0:02:59.4]} 3... d6 {[%clk 0:03:02.7]}
4. Be3 {[%clk 0:02:59]} 4... Nd7 {[%clk 0:03:03.6]} 5. Qd2 {[%clk 0:02:59.2]}
5... g6 {[%clk 0:03:04.2]} 6. O-O-O {[%clk 0:02:58.3]} 6... Bg7 {[%clk
0:03:04.8]} 7. h4 {[%clk 0:02:57.7]} 7... h6 {[%clk 0:03:05.4]} 8. h5 {[%clk
0:02:55.2]} 8... g5 {[%clk 0:03:05.9]} 9. f4 {[%clk 0:02:55.4]} 9... gxf4 {[%clk
0:03:06.8]} 10. Bxf4 {[%clk 0:02:56.3]} 10... e6 {[%clk 0:03:07.1]} 11. g4
{[%clk 0:02:51.2]} 11... Ne7 {[%clk 0:03:06.8]} 12. g5 {[%clk 0:02:50.1]} 12...
hxg5 {[%clk 0:03:06.3]} 13. Bxg5 {[%clk 0:02:51]} 13... Bf6 {[%clk 0:03:06.8]}
14. Nf3 {[%clk 0:02:48.7]} 14... a6 {[%clk 0:02:52.5]} 15. Bd3 {[%clk
0:02:45.7]} 15... Nc6 {[%clk 0:02:45.6]} 16. Rdf1 {[%clk 0:02:41.2]} 16... Qe7
{[%clk 0:02:37.2]} 17. Bxf6 {[%clk 0:02:30.3]} 17... Nxf6 {[%clk 0:02:30.2]} 18.
Ng5 {[%clk 0:02:14.2]} 18... O-O-O {[%clk 0:02:18.7]} 19. Qf2 {[%clk 0:01:59.2]}
19... Rh6 {[%clk 0:02:02.9]} 20. Be2 {[%clk 0:01:40.4]} 20... Rg8 {[%clk
0:02:00.9]} 21. Rhg1 {[%clk 0:01:39.8]} 21... Kb8 {[%clk 0:01:57.2]} 22. a3
{[%clk 0:01:25.5]} 22... Bc8 {[%clk 0:01:28.3]} 23. Kb1 {[%clk 0:01:15.5]} 23...
e5 {[%clk 0:01:25.8]} 24. d5 {[%clk 0:01:07.8]} 24... Nd4 {[%clk 0:01:24.5]} 25.
Bd1 {[%clk 0:01:08.1]} 25... Nxh5 {[%clk 0:01:12]} 26. Qxf7 {[%clk 0:01:00]}
26... Qxf7 {[%clk 0:00:58.9]} 27. Nxf7 {[%clk 0:01:00.9]} 27... Rxg1 {[%clk
0:00:57.3]} 28. Rxg1 {[%clk 0:00:56.8]} 28... Rf6 {[%clk 0:00:13.2]} 29. Bxh5
{[%clk 0:00:52]} 29... Rf2 {[%clk 0:00:13.8]} 30. Rg8 {[%clk 0:00:44.4]} 30...
Kb7 {[%clk 0:00:05.7]} 31. Nd8+ {[%clk 0:00:43]} 31... Ka7 {[%clk 0:00:06.2]}
32. Nc6+ {[%clk 0:00:38.3]} 32... Nxc6 {[%clk 0:00:06.4]} 33. dxc6 {[%clk
0:00:38.4]} 33... Be6 {[%clk 0:00:06.5]} 34. Rg1 {[%clk 0:00:33.7]} 34... b5
{[%clk 0:00:05.6]} 35. b4 {[%clk 0:00:24.8]} 35... Kb6 {[%clk 0:00:05.2]} 36.
Be8 {[%clk 0:00:17]} 36... Rf8 {[%clk 0:00:05.3]} 37. Bd7 {[%clk 0:00:17]} 37...
Bc4 {[%clk 0:00:05.9]} 38. Nd5+ {[%clk 0:00:14.6]} 38... Bxd5 {[%clk 0:00:06.3]}
39. exd5 {[%clk 0:00:15.5]} 39... Rh8 {[%clk 0:00:06.8]} 40. Kc1 {[%clk
0:00:14.5]} 40... Rf8 {[%clk 0:00:05.8]} 41. Kd2 {[%clk 0:00:14.7]} 41... Rf3
{[%clk 0:00:05.5]} 42. c3 {[%clk 0:00:14.4]} 42... Rf2+ {[%clk 0:00:05.5]} 43.
Kc1 {[%clk 0:00:14.8]} 43... Rf8 {[%clk 0:00:05.7]} 44. Be6 {[%clk 0:00:14.8]}
44... Rf6 {[%clk 0:00:01.5]} 45. Rg8 {[%clk 0:00:14.2]} 45... Rf1+ {[%clk
0:00:02]} 46. Kb2 {[%clk 0:00:13.6]} 46... Rf2+ {[%clk 0:00:02.4]} 47. Kb3
{[%clk 0:00:14.1]} 47... a5 {[%clk 0:00:02.7]} 48. bxa5+ {[%clk 0:00:12.8]}
48... Kxa5 {[%clk 0:00:01.5]} 49. Ra8+ {[%clk 0:00:12.6]} 49... Kb6 {[%clk
0:00:02]} 50. Rb8+ {[%clk 0:00:12.8]} 50... Kc5 {[%clk 0:00:02.1]} 51. Rb7
{[%clk 0:00:12.8]} 51... e4 {[%clk 0:00:02.7]} 52. Rxc7 {[%clk 0:00:12.6]} 52...
e3 {[%clk 0:00:02.8]} 53. Re7 {[%clk 0:00:12.7]} 53... Rf4 {[%clk 0:00:01.8]}
54. c7 {[%clk 0:00:11.7]} 1-0